Workbook

Sheet NAT TOT BOX COUNT
A4: National Box Count | E4: Forecated Intransit Boxes 10% | F4: TOTAL
B5: SB1 | C5: Storage Voucher Boxes | D5: 8.00 | E5: =D5*10% -> 0.80 | F5: =E5+D5 -> 8.80
B6: SB2 | C6: Storage Fnb Special Boxes | D6: 1.00 | E6: =D6*10% -> 0.10 | F6: =E6+D6 -> 1.10
B7: SBF1 | C7: Storage Metal Trays | D7: 825.00 | E7: 82.50 | F7: 907.50
B8: SM1 | C8: Storage M1 Boxes | D8: 5.00 | E8: 0.50 | F8: 5.50
B9: SM2 | C9: Storage M2 Boxes | D9: 196,401.00 | E9: 19,640.10 | F9: 216,041.10
B10: SM3 | C10: Storage M3 Boxes | D10: 16,479.00 | E10: 1,647.90 | F10: 18,126.90
B11: SM4 | C11: Storage M4 Boxes | D11: 10.00 | E11: 1.00 | F11: 11.00
B12: SMX3 | C12: Storage | D12: 26.00 | E12: 2.60 | F12: 28.60
B13: SNHLS | C13: Slides | D13: 456.00 | E13: 45.60 | F13: 501.60
B14: SS2 | C14: Storage S2 Boxes | D14: 2.00 | E14: 0.20 | F14: 2.20
B15: ST3 | C15: Storage X Large Tubes | D15: 4.00 | E15: 0.40 | F15: 4.40
B17: GRAND TOTAL | D17: =SUM(D5:D16) -> 214,217.00 | E17: 21,421.70 | F17: =SUM(F5:F16) -> 235,638.70

Sheet BOXES PER REGION
A3: NHLS NATIONAL BOX COUNT AS AT 31/05/2025
A4: Site | B4: Box Size | C4: Description | D4: Qty | E4: Forecated Intransit Boxes 10% | F4: Total | G4: Storage Cost | I4: Site | J4: Box Size | K4: Description | L4: Qty | M4: Forecated Intransit Boxes 10% | N4: Total | O4: Storage Cost
A5: Bloemfontein | B5: SBF1 | C5: Storage Metal Trays | D5: 825.00 | E5: =D5*10% -> 82.50 | F5: =D5+E5 -> 907.50 | I5: Empangeni | J5: SM2 | K5: Storage M2 Boxes | L5: 12,910.00 | M5: =L5*10% -> 1,291.00
B6: SM2 | C6: Storage M2 Boxes | D6: 11,302.00 | E6: =D6*10% -> 1,130.20 | F6: =D6+E6 -> 12,432.20 | J6: SM3 | K6: Storage M3 Boxes | L6: 148.00 | M6: =L6*10% -> 14.80
B7: SM3 | C7: Storage M3 Boxes | D7: 330.00 | E7: 33.00 | F7: 363.00 | J7: SMX3 | K7: Storage | L7: 26.00 | M7: 2.60
C8: TOTAL | K8: TOTAL
A11: Cape Town | I11: Johannesburg
B12: SB2 | C12: Storage Fnb Special Boxes | D12: 1.00 | E12: =D12*10% -> 0.10 | J12: SB1 | K12: Storage Voucher Boxes | L12: 8.00 | M12: =L12*10% -> 0.80
B13: SM1 | C13: Storage M1 Boxes | D13: 1.00 | E13: 0.10 | J13: SM1 | K13: Storage M1 Boxes | L13: 1.00 | M13: 0.10
B14: SM2 | C14: Storage M2 Boxes | D14: 11,511.00 | E14: 1,151.10 | J14: SM2 | K14: Storage M2 Boxes | L14: 42,899.00 | M14: 4,289.90
B15: SM3 | C15: Storage M3 Boxes | D15: 1,346.00 | E15: 134.60 | J15: SM3 | K15: Storage M3 Boxes | L15: 14,198.00 | M15: 1,419.80
C16: TOTAL | J16: SM4 | K16: Storage M4 Boxes | L16: 10.00 | M16: 1.00
J17: SS2 | K17: Storage S2 Boxes | L17: 2.00 | M17: 0.20
K18: TOTAL
A19: Durban | I19: Nelspruit
J20: SM1 | K20: Storage M1 Boxes | L20: 1.00 | M20: =L20*10% -> 0.10
B21: SM2 | C21: Storage M2 Boxes | D21: 45,813.00 | E21: =D21*10% -> 4,581.30 | J21: SM2 | K21: Storage M2 Boxes | L21: 9,250.00 | M21: 925.00
B22: SM3 | C22: Storage M3 Boxes | D22: 27.00 | E22: 2.70 | J22: SM3 | K22: Storage M3 Boxes | L22: 1.00 | M22: 0.10
C23: TOTAL
A25: East London | I25: Polokwane
B26: SNHLS | C26: Slides | D26: 318.00 | E26: =D26*10% -> 31.80 | J26: SM2 | K26: Storage M2 Boxes | L26: 12,787.00 | M26: =L26*10% -> 1,278.70
B27: SM2 | C27: Storage M2 Boxes | D27: 22,197.00 | E27: 2,219.70 | J27: SM3 | K27: Storage M3 Boxes | L27: 136.00 | M27: 13.60
K28: TOTAL
A30: Port Elizabeth | I30: Pretoria
B31: SM2 | C31: Storage M2 Boxes | D31: 11,678.00 | E31: =D31*10% -> 1,167.80 | J31: SM1 | K31: Storage M1 Boxes | L31: 2.00 | M31: =L31*10% -> 0.20
B32: SM3 | C32: Storage M3 Boxes | D32: 117.00 | E32: =D32*10% -> 11.70 | J32: SM2 | K32: Storage M2 Boxes | L32: 16,054.00 | M32: 1,605.40
B33: SNHLS | C33: Slides | D33: 138.00 | E33: 13.80 | J33: SM3 | K33: Storage M3 Boxes | L33: 176.00 | M33: 17.60
C34: TOTAL | J34: ST3 | K34: Storage X Large Tubes | L34: 4.00 | M34: 0.40
K35: TOTAL

Sheet RATE CONS
A3: RATE CONSOLIDATION
A4: Proposed NHLS Allocation | B4: Year 1(Inclusive of Forecasting + VAT) | C4: Year 2(Inclusive of Forecasting + VAT) | D4: Year 3(Inclusive of Forecasting + VAT) | E4: 3-Years TOTAL
A6: Nelspruit | B6: R | C6: R | D6: R | E6: R
A7: Johannesburg | B7: R | C7: R | D7: R | E7: R
A8: Empangeni | B8: R | C8: R | D8: R | E8: R
A9: Cape Town | B9: R | C9: R | D9: R | E9: R
A10: Durban | B10: R | C10: R | D10: R | E10: R
A11: East London | B11: R | C11: R | D11: R | E11: R
A12: Pretoria | B12: R | C12: R | D12: R | E12: R
A13: Bloemfontein | B13: R | C13: R | D13: R | E13: R
A14: Polokwane | B14: R | C14: R | D14: R | E14: R
A15: Port Elizabeth | B15: R | C15: R | D15: R | E15: R
E16: Grand Total
E17: R

Sheet RELOCATION COSTS
A3: ONCE OFF RELOCATION COSTS
C4: COSTING FOR TRANSPORT DISTRIBUTION
A5: COLLECTION POINT: | B5: SUPPLIER STORAGE ADRESS | C5: RATE PER BOX:INCLUDING HANDLING AND PACKING | D5: QUANTITY OF BOXES | E5: KM's | F5: TOTAL
A6: Eastern Cape:25 Stormberg Road, Gately, East London
A7: Free State:8 Clarkson Street, Estoire, Bloemfontein
A8: Western Cape:1 Munich Street, Airport Industria
A9: KZN:1-3 Clubhouse Place, Mahogany Ridge, Westmead, Pinetown, KZN, 3608
A10: Mpumalanga:7 White Water Street, Riverside, Nelspruit
A11: Gauteng: 3 Gowie Road, The Gables, Cleveland, Gauteng, 2022
A12: Limpopo :1 Daniel Street, Industria
A13: Northern Cape :8 Clarkson Street, Estoire, Bloemfontein
A14: Total
